bitfinex/quotes_SOLUSD_20250212
["timestamp","ask_amount","ask_price","bid_price","bid_amount"]
[1739324805891,9.82671176,197.89,197.82,9.82671176]
[1739324806110,9.82671176,197.87,197.8,79.03648371]
[1739324806408,9.82671176,197.87,197.8,88.86319547]
[1739324807388,9.82671176,197.87,197.8,93.91869547]
[1739324807590,9.82671176,197.87,197.81,9.82671176]
[1739324807814,1.6266,197.88,197.83,9.82671176]
[1739324808006,1.6266,197.88,197.84,9.82671176]
[1739324809295,1.6266,197.88,197.84,14.88121176]
[1739324809799,1.6266,197.88,197.84,5.0545]
[1739324810012,1.6566,197.88,197.84,5.0545]
[1739324810317,1.6566,197.88,197.84,9.82671176]
[1739324810915,0.03,197.88,197.85,23.23856029]
[1739324811291,0.03,197.88,197.85,9.82671176]
[1739324811491,0.03,197.88,197.82,14.88181176]
[1739324811697,0.03,197.88,197.83,13.41184853]
[1739324812614,9.85671176,197.88,197.82,5.055]
[1739324815241,9.85671176,197.88,197.82,14.88171176]
[1739324816296,9.85671176,197.88,197.82,5.055]
[1739324818331,9.82671176,197.86,197.82,5.055]
[1739324818535,5.0836,197.88,197.8,5.0554]
[1739324818536,9.82671176,197.84,197.8,5.0554]
[1739324818904,1.6022,197.85,197.8,5.0554]
[1739324818905,11.42891176,197.85,197.8,5.0554]
[1739324819500,11.42891176,197.85,197.79,14.88251176]
[1739324820118,11.42891176,197.85,197.79,5.0558]
[1739324820319,9.82671176,197.82,197.76,5.0563]
[1739324820619,1.6022,197.85,197.81,13.41184853]
[1739324820821,0.03,197.88,197.81,13.41184853]
[1739324821008,0.03,197.88,197.8,33.53733853]
[1739324821208,0.03,197.88,197.85,9.82671176]
[1739324821416,0.03,197.88,197.86,9.82671176]
[1739324821615,0.03,197.88,197.87,5.0538]
[1739324821808,0.03,197.88,197.87,14.88051176]
[1739324822407,0.03,197.88,197.87,9.82671176]
[1739324822617,0.03,197.88,197.86,9.82671176]
[1739324823630,0.03,197.88,197.86,15.34995663]
[1739324823808,0.03,197.88,197.87,28.76180516]
[1739324824010,0.03,197.88,197.87,29.26376516]
[1739324824212,0.03,197.88,197.87,108.30024887]
[1739324824511,0.0001,197.88,197.87,109.30024887]
[1739324824703,8.1346,198.0,197.87,109.30024887]
[1739324824704,8.1346,198.0,197.88,1.37647]
[1739324824911,7.85821612,198.01,197.98,15.34995663]
[1739324825107,7.85821612,198.01,197.99,15.34995663]
[1739324825528,7.85821612,198.01,197.97,15.34995663]
[1739324825731,7.85821612,198.01,197.98,15.34995663]
[1739324826614,7.85821612,198.01,197.99,15.34995663]
[1739324827007,7.85821612,198.01,197.98,15.34995663]
[1739324827529,7.85821612,198.01,198.0,15.34995663]
[1739324827729,7.85821612,198.01,197.99,15.34995663]
[1739324827926,31.43286451,198.04,197.95,13.41184853]
[1739324827927,15.34995663,198.04,197.97,15.34995663]
[1739324828113,15.34995663,198.04,197.98,15.34995663]
[1739324828430,82.16145663,198.05,197.98,15.34995663]
[1739324828628,77.11215663,198.05,197.98,15.34995663]
[1739324828939,82.16135663,198.05,197.98,15.34995663]
[1739324829229,15.34995663,198.04,197.98,15.34995663]
[1739324830247,61.7622,198.05,198.0,15.34995663]
[1739324830538,15.34995663,198.04,197.98,15.34995663]
[1739324830722,15.34995663,198.01,197.94,15.34995663]
[1739324831030,15.34995663,198.0,197.94,13.41184853]
[1739324831809,20.40055663,198.0,197.94,13.41184853]
[1739324832613,5.0506,198.0,197.94,15.34995663]
[1739324832825,20.40015663,198.01,197.94,15.34995663]
[1739324833127,20.40015663,198.01,197.93,13.41184853]
[1739324833128,5.0502,198.01,197.95,15.34995663]
[1739324833315,15.34995663,198.04,197.98,15.34995663]
[1739324833515,1.6022,198.05,198.0,15.34995663]
[1739324833730,16.98365663,198.1,198.03,15.34995663]
[1739324833917,16.98365663,198.1,198.04,15.34995663]
[1739324833918,6.6816,198.1,198.04,15.34995663]
[1739324834119,1.6337,198.1,198.01,13.41184853]
[1739324834321,1.6337,198.1,198.07,15.34995663]
[1739324834531,7.85821612,198.13,198.06,20.0]
[1739324834834,7.85821612,198.13,198.12,15.34995663]
[1739324835336,11.65314556,198.16,198.12,15.34995663]
[1739324835520,11.65314556,198.16,198.13,15.34995663]
[1739324836315,7.85821612,198.16,198.14,15.34995663]
[1739324836515,7.85821612,198.16,198.13,35.34995663]
[1739324837110,7.85821612,198.16,198.1,18.45964853]
[1739324837111,7.85821612,198.16,198.11,15.34995663]
[1739324837319,15.34995663,198.15,198.09,15.34995663]
[1739324837519,7.85821612,198.16,198.0,16.34995663]
[1739324837520,15.34995663,198.11,198.05,15.34995663]
[1739324837785,15.34995663,198.11,198.04,15.34995663]
[1739324837918,1.6337,198.14,198.0,5.0503]
[1739324838116,1.0,198.13,197.98,5.0508]
[1739324838340,15.34995663,198.07,198.01,15.34995663]
[1739324838846,15.34995663,198.09,198.04,20.0]
[1739324839051,1.6337,198.14,197.99,13.41184853]
[1739324839052,15.34995663,198.1,198.03,15.34995663]
[1739324839350,15.34995663,198.12,198.05,15.34995663]
[1739324839848,24.51292623,198.11,198.05,24.51292623]
[1739324840273,24.51292623,198.1,198.03,24.51292623]
[1739324840554,24.51292623,198.08,198.04,20.0]
[1739324841147,24.51292623,198.1,198.04,20.0]
[1739324841320,24.51292623,198.11,198.04,44.51292623]
[1739324841535,24.51292623,198.11,198.05,37.92477476]
[1739324842273,24.51292623,198.11,198.05,13.41184853]
[1739324842762,24.51292623,198.09,198.05,13.41184853]
[1739324842963,24.51292623,198.09,198.02,24.51292623]
[1739324843332,24.51292623,198.09,198.04,13.41184853]
[1739324843635,24.51292623,198.07,198.0,24.51292623]
[1739324843852,24.51292623,198.06,198.01,13.41184853]
[1739324844161,24.51292623,198.07,198.01,13.41184853]
[1739324844566,24.51292623,198.07,198.02,13.41184853]
[1739324846367,24.51292623,198.08,198.02,13.41184853]
[1739324846567,24.51292623,198.07,198.0,24.51292623]
[1739324846869,24.51292623,198.06,198.01,13.41184853]
[1739324847846,24.51292623,198.07,198.01,13.41184853]
[1739324848262,24.51292623,198.07,198.01,37.92477476]
[1739324849254,29.56162623,198.07,198.01,37.92477476]
[1739324849460,24.51292623,198.1,198.04,24.51292623]
[1739324849662,24.51292623,198.1,198.05,13.41184853]
[1739324850169,24.51292623,198.09,198.02,37.92477476]
[1739324850375,24.51292623,198.08,198.02,37.92477476]
[1739324850875,24.51292623,198.08,198.02,13.41184853]
[1739324851477,29.56132623,198.08,198.02,13.41184853]
[1739324851883,24.51292623,198.07,198.02,13.41184853]
[1739324852079,24.51292623,198.06,198.01,20.0]
[1739324852250,24.51292623,198.05,198.02,13.41184853]
[1739324852455,24.51292623,198.06,198.02,13.41184853]
[1739324853460,24.51292623,198.06,197.99,24.51292623]
[1739324853663,24.51292623,198.04,197.97,24.51292623]
[1739324853856,24.51292623,198.04,197.98,13.78831853]
[1739324854056,24.51292623,198.02,197.98,13.41184853]
[1739324854264,24.51292623,198.02,197.96,13.78831853]
[1739324854653,24.51292623,198.03,197.96,38.30124476]
[1739324854853,24.51292623,198.04,197.98,13.41184853]
[1739324855052,29.56232623,198.04,197.98,13.41184853]
[1739324855351,31.19592623,198.05,197.99,13.41184853]
[1739324855578,26.14662623,198.05,197.99,13.41184853]
[1739324855751,31.19582623,198.05,197.99,13.41184853]
[1739324855951,24.51292623,198.04,197.97,24.51292623]
[1739324856382,24.51292623,198.02,197.97,13.41184853]
[1739324858093,24.51292623,198.02,197.95,24.51292623]
[1739324858300,24.51292623,198.02,171.55,5.0]
[1739324858301,24.51292623,198.0,197.93,29.56512623]
[1739324858498,24.51292623,197.99,197.93,18.46404853]
[1739324858789,24.51292623,198.01,197.95,13.41184853]
[1739324859175,24.51292623,198.03,197.96,37.92477476]
[1739324859483,6.6829,198.05,197.99,13.41184853]
[1739324859484,26.14662623,198.05,197.99,13.41184853]
[1739324859791,16.96512035,198.05,197.99,13.41184853]
[1739324860170,1.6337,198.05,198.01,13.41184853]
[1739324860369,0.03,198.06,198.01,13.41184853]
[1739324860969,15.36142035,198.06,198.0,13.66282853]
[1739324861170,15.36142035,198.06,198.0,28.99424888]
[1739324862000,0.03,198.06,198.0,28.99424888]
[1739324862203,0.03,198.06,198.03,15.33142035]
[1739324862494,0.03,198.06,198.05,28.99424888]
[1739324862891,0.03,198.06,198.05,34.29442888]
[1739324864264,0.03,198.06,198.05,13.41184853]
[1739324864482,0.03,198.06,198.02,5.0498]
[1739324864682,0.03,198.06,198.01,13.91380853]
[1739324864877,0.03,198.06,198.01,29.24522888]
[1739324865283,15.36142035,198.06,198.01,13.78831853]
[1739324865891,15.36142035,198.06,198.01,0.25098]
[1739324866765,15.33142035,198.05,198.0,13.41184853]
[1739324866969,15.33142035,198.04,198.0,13.41184853]
[1739324867492,15.33142035,198.03,197.98,0.25098]
[1739324867676,24.53559019,198.03,197.96,24.53559019]
[1739324867877,24.53559019,198.03,197.97,13.78831853]
[1739324868196,24.53559019,198.01,197.97,13.41184853]
[1739324869185,24.53559019,198.02,197.97,18.46294853]
[1739324869589,24.53559019,198.03,197.97,18.46294853]
[1739324871091,24.53559019,198.03,197.99,13.41184853]
[1739324871297,24.53559019,198.04,197.99,13.41184853]
[1739324871678,0.03,198.06,198.01,13.41184853]
[1739324871975,24.56559019,198.06,198.01,13.41184853]
[1739324872205,24.56559019,198.06,198.0,0.25098]
[1739324872707,24.56559019,198.06,198.02,20.0]
[1739324872882,0.03,198.06,198.01,13.41184853]
[1739324873085,0.03,198.06,198.02,0.25098]
[1739324873279,0.03,198.06,198.03,5.0497]
[1739324873508,0.03,198.06,198.04,13.41184853]
[1739324875282,0.03,198.06,198.04,0.25098]
[1739324876895,0.03,198.06,198.03,18.46154853]
[1739324878804,0.03,198.06,198.03,42.99713872]
[1739324880702,0.03,198.06,198.05,24.53559019]
[1739324880881,0.03,198.06,198.05,38.19841872]
[1739324881785,0.03,198.06,198.05,43.24761872]
[1739324883107,0.03,198.06,198.05,13.41184853]
[1739324883415,0.03,198.06,198.02,5.0497]
[1739324883813,0.03,198.06,198.03,13.41184853]
[1739324885206,0.03,198.06,198.02,13.41184853]
[1739324885382,24.53559019,198.04,197.97,24.53559019]
[1739324885585,24.53559019,198.04,197.95,98.02488371]
[1739324885586,24.53559019,198.02,197.96,29.58709019]
[1739324886101,24.53559019,198.02,197.97,13.41184853]
[1739324886398,24.53559019,198.03,197.97,37.94743872]
[1739324886608,24.53559019,198.04,197.98,5.051]
[1739324886821,1.5404,198.06,198.0,24.78657019]
[1739324886990,1.5404,198.06,198.02,13.41184853]
[1739324887184,0.03,198.06,198.02,37.94743872]
[1739324887383,0.03,198.06,198.04,37.94743872]
[1739324887587,0.03,198.06,198.05,38.19841872]
[1739324887889,0.03,198.06,198.05,38.44939872]
[1739324888685,0.03,198.06,198.05,43.49859872]
[1739324888889,7.85821612,198.12,198.09,0.50196]
[1739324889102,7.85821612,198.12,198.11,24.53559019]
[1739324889304,1.5104,198.16,198.12,13.66282853]
[1739324889608,43.71601659,198.19,198.12,38.19841872]
[1739324889788,15.38623188,198.19,198.13,24.53559019]
[1739324890002,15.38623188,198.19,198.15,24.53559019]
[1739324890326,7.85821612,198.19,198.17,13.41184853]
[1739324890687,7.85821612,198.19,198.15,24.53559019]
[1739324890884,7.85821612,198.19,198.16,13.41184853]
[1739324891087,7.85821612,198.19,198.14,13.66282853]
[1739324891502,32.39380631,198.19,198.14,13.41184853]
[1739324891701,24.53559019,198.18,198.11,24.53559019]
[1739324891887,24.53559019,198.18,198.12,13.66282853]
[1739324892303,5.0456,198.19,198.12,13.66282853]
[1739324892304,24.53559019,198.19,198.12,38.19841872]
[1739324892482,24.53559019,198.19,198.14,13.41184853]
[1739324893107,29.58129019,198.19,198.12,24.53559019]
[1739324893307,24.53559019,198.17,198.1,24.53559019]
[1739324893504,24.53559019,198.17,198.11,13.41184853]
[1739324894017,24.53559019,198.17,198.11,37.94743872]
[1739324894306,24.53559019,198.18,198.11,37.94743872]
[1739324894510,29.58129019,198.19,198.13,37.94743872]
[1739324895211,29.58129019,198.19,198.13,13.41184853]
[1739324896685,24.53559019,198.18,198.13,13.41184853]
[1739324896884,24.56559019,198.17,198.11,20.0]
[1739324897511,0.03,198.17,198.11,24.53559019]
[1739324898507,0.03,198.17,198.12,37.94743872]
[1739324898709,0.03,198.17,198.13,24.53559019]
[1739324899690,0.03,198.17,198.13,15.30885736]
[1739324899897,0.03,198.17,198.12,15.30885736]
[1739324900102,0.03,198.17,198.13,13.41184853]
[1739324900286,0.03,198.17,198.12,15.30885736]
[1739324900498,0.03,198.17,198.13,28.72070589]
[1739324901086,0.03,198.17,198.13,13.41184853]
[1739324901908,0.03,198.17,198.11,15.30885736]
[1739324902613,0.03,198.17,198.12,13.41184853]
[1739324902819,5.0761,198.17,198.12,13.41184853]
[1739324903921,15.30885736,198.16,198.1,20.0]
[1739324904218,15.30885736,198.14,198.07,15.30885736]
[1739324904420,15.30885736,198.13,198.06,15.30885736]
[1739324904611,15.30885736,198.13,198.07,13.41184853]
[1739324905105,15.30885736,198.14,198.07,28.72070589]
[1739324905309,15.30885736,198.14,198.07,15.30885736]
[1739324905497,0.03,198.17,198.11,15.30885736]
[1739324905898,5.0761,198.17,198.11,15.30885736]
[1739324906614,15.30885736,198.16,198.09,15.30885736]
[1739324906799,15.30885736,198.14,198.07,15.30885736]
[1739324906998,15.30885736,198.14,198.08,15.30885736]
[1739324907301,15.30885736,198.15,198.08,15.30885736]
[1739324907803,5.0469,198.14,198.08,15.30885736]
[1739324908314,15.30885736,198.13,198.07,13.41184853]
[1739324908715,20.35575736,198.14,198.07,33.76930589]
[1739324909142,15.30885736,198.16,198.1,13.41184853]
[1739324909344,20.38495736,198.17,198.1,15.30885736]
[1739324910544,15.30885736,198.15,198.09,33.76860589]
[1739324911119,15.30885736,198.15,198.09,18.45974853]
[1739324912128,15.30885736,198.15,198.09,13.41184853]
[1739324912530,15.30885736,198.15,198.09,33.76880589]
[1739324912740,15.30885736,198.15,198.08,15.30885736]
[1739324912948,15.30885736,198.14,198.07,15.30885736]
[1739324913712,20.35595736,198.14,198.07,15.30885736]
[1739324914340,20.35595736,198.14,198.07,20.35755736]
[1739324915415,15.30885736,198.12,198.06,15.30885736]
[1739324915721,15.30885736,198.11,198.04,15.30885736]
[1739324916927,13.80885736,198.11,198.04,20.35815736]
[1739324917452,18.85665736,198.11,198.04,20.35815736]
[1739324917653,15.30885736,198.1,198.04,15.30885736]
[1739324918435,20.35665736,198.11,198.04,20.35825736]
[1739324920844,15.30885736,198.11,198.04,20.35825736]
[1739324921234,15.30885736,198.1,198.04,20.35825736]
[1739324922944,20.35685736,198.1,198.04,20.35825736]
[1739324923135,20.35685736,198.1,198.03,28.72070589]
[1739324923337,15.30885736,198.06,198.0,15.30885736]
[1739324923536,15.30885736,198.06,198.01,13.41184853]
[1739324923752,15.30885736,198.08,198.01,28.72070589]
[1739324924431,20.35735736,198.08,198.01,33.77080589]
[1739324924752,15.30885736,198.07,198.01,18.46194853]
[1739324925358,15.30885736,198.05,197.99,5.0506]
[1739324925848,15.30885736,198.06,198.0,15.30885736]
[1739324926545,20.35775736,198.06,197.99,33.77140589]
[1739324927839,20.35755736,198.07,198.0,15.30885736]
[1739324928041,15.30885736,198.08,198.01,15.30885736]
[1739324928937,15.30885736,198.07,198.0,15.30885736]
[1739324930427,15.30885736,198.07,198.0,20.35915736]
[1739324931251,20.35755736,198.08,198.01,15.30885736]
[1739324931943,20.35755736,198.08,198.01,20.35895736]
[1739324932828,20.35755736,198.08,198.01,20.35895736]
[1739324933051,15.30885736,198.07,198.0,15.37185736]
[1739324933237,15.30885736,198.08,198.01,28.72070589]
[1739324933553,15.30885736,198.08,198.01,15.30885736]
[1739324934144,15.30885736,198.08,198.02,5.0499]
[1739324934353,15.30885736,198.08,198.02,20.35875736]
[1739324935159,21.81045736,198.1,198.03,15.30885736]
[1739324935330,15.30885736,198.1,198.04,15.30885736]
[1739324935852,15.33885736,198.11,198.04,15.30885736]
[1739324936443,0.03,198.11,198.05,20.35805736]
[1739324936643,0.03,198.11,198.1,15.30885736]
[1739324937148,0.03,198.11,198.1,28.72070589]
[1739324937541,0.03,198.11,198.1,44.28054325]
[1739324937932,0.03,198.11,198.1,28.97168589]
[1739324938233,0.03,198.11,198.1,33.76860589]
[1739324938845,0.03,198.11,198.1,34.01958589]
[1739324941149,0.03,198.14,198.13,20.0]
[1739324941334,0.03,198.17,198.16,15.30885736]
[1739324941540,0.03,198.17,198.16,28.72070589]
[1739324941942,0.03,198.17,198.15,15.30885736]
[1739324942339,0.03,198.17,198.16,15.30885736]
[1739324943652,0.03,198.17,198.16,28.72070589]
[1739324945236,0.03,198.17,198.14,15.30885736]
[1739324945435,0.03,198.17,198.13,15.30885736]
[1739324945654,0.03,198.17,198.12,15.30885736]
[1739324945859,0.03,198.17,198.11,15.30885736]
[1739324946159,0.03,198.17,198.12,15.30885736]
[1739324947363,15.33885736,198.17,198.11,15.30885736]
[1739324947660,15.30885736,198.16,198.09,15.30885736]
[1739324947844,5.0466,198.15,198.09,15.30885736]
[1739324948363,20.38515736,198.17,198.1,15.30885736]
[1739324948735,0.03,198.17,198.12,15.30885736]
[1739324948942,0.03,198.17,198.13,15.30885736]
[1739324949756,5.0761,198.17,198.11,15.30885736]
[1739324950054,15.30885736,198.16,198.09,15.30885736]
[1739324950256,20.38495736,198.17,198.11,15.30885736]
[1739324950442,0.03,198.17,198.13,15.30885736]
[1739324951060,0.03,198.17,198.12,15.30885736]
[1739324951560,0.03,198.17,198.11,15.30885736]
[1739324952950,0.03,198.17,198.12,15.30885736]
[1739324955044,0.03,198.17,198.11,20.35635736]
[1739324955240,0.03,198.17,198.12,15.30885736]
[1739324955762,0.03,198.17,198.14,15.30885736]
[1739324956347,0.03,198.17,198.13,28.72070589]
[1739324957466,0.03,198.17,198.13,15.30885736]
[1739324957767,0.03,198.17,198.12,15.37185736]
[1739324957968,0.03,198.17,198.13,15.30885736]
[1739324958548,0.03,198.17,198.14,15.30885736]
[1739324958967,0.03,198.17,198.13,28.72070589]
[1739324959872,0.03,198.17,198.13,33.76780589]
[1739324960383,0.03,198.17,198.15,15.30885736]
[1739324960580,0.03,198.17,198.16,15.30885736]
[1739324960867,0.03,198.17,198.16,33.76710589]
[1739324961870,0.03,198.17,198.16,28.2515614]
[1739324963671,0.03,198.17,198.16,33.76034398]
[1739324964962,0.03,198.17,198.16,34.26230398]
[1739324971779,0.03,198.17,198.16,34.13681398]
[1739324973992,0.03,198.17,198.16,34.26230398]
[1739324978190,1.5672,198.28,198.2,20.37647]
[1739324978396,1.5672,198.28,198.25,15.30209545]
[1739324978696,1.5672,198.28,198.23,15.30209545]
[1739324979301,1.5672,198.28,198.22,15.30209545]
[1739324979595,6.6105,198.28,198.22,15.30209545]
[1739324980481,15.30209545,198.27,198.2,28.71394398]
[1739324982005,21.91259545,198.28,198.21,15.30209545]
[1739324982305,6.6105,198.28,198.22,15.30209545]
[1739324982691,21.91259545,198.28,198.21,15.30209545]
[1739324983603,1.5672,198.28,198.22,15.30209545]
[1739324983807,1.5672,198.28,198.23,15.30209545]
[1739324984690,1.5672,198.28,198.24,15.30209545]
[1739324984897,1.5672,198.28,198.25,15.30209545]
[1739324985709,1.5672,198.28,198.25,9.78560368]
[1739324986395,1.582,198.33,198.27,9.78560368]
[1739324986582,1.582,198.33,198.29,9.78560368]
[1739324987198,1.582,198.33,198.31,9.78560368]
[1739324987399,1.582,198.33,198.3,9.78560368]
[1739324988708,1.582,198.33,198.29,9.78560368]
[1739324989395,16.40970368,198.33,198.27,9.78560368]
[1739324989700,11.36760368,198.33,198.27,9.78560368]
[1739324989903,1.582,198.33,198.27,14.82910368]
[1739324991111,1.582,198.33,198.28,9.78560368]
[1739324994928,1.582,198.33,198.28,14.82890368]
[1739324995105,1.582,198.33,198.29,9.78560368]
[1739324996601,1.582,198.33,198.28,14.82890368]
[1739324996810,1.582,198.33,198.27,14.82920368]
[1739324997100,1.582,198.33,198.28,9.78560368]
[1739324998202,1.582,198.33,198.28,14.82890368]
[1739324998624,1.582,198.33,198.29,9.78560368]
[1739324999106,1.582,198.33,198.28,5.0433]
[1739324999107,1.582,198.33,198.3,9.78560368]
[1739324999807,0.03,198.37,198.32,9.78560368]
[1739325000320,0.03,198.37,198.36,9.78560368]
[1739325001219,0.03,198.37,198.36,23.19745221]
[1739325001401,0.03,198.37,198.36,23.32294221]
[1739325002531,0.03,198.37,198.36,28.36424221]
[1739325002911,1.5926,198.47,198.39,0.12549]
[1739325003115,1.5926,198.47,198.45,9.78560368]
[1739325003516,7.85821612,198.48,198.46,9.78560368]
[1739325004224,7.85821612,198.48,198.43,9.78560368]
[1739325005207,0.03,198.47,198.43,9.78560368]
[1739325006018,9.78560368,198.5,198.43,9.78560368]
[1739325006219,9.78560368,198.47,198.41,9.78560368]
[1739325006406,9.78560368,198.49,198.42,9.78560368]
[1739325007421,14.82360368,198.5,198.43,9.78560368]
[1739325007621,9.78560368,198.51,198.45,9.78560368]
[1739325008417,14.82310368,198.51,198.45,9.78560368]
[1739325008626,14.82310368,198.51,198.44,9.78560368]
[1739325008827,9.78560368,198.51,198.45,9.78560368]
[1739325009215,14.82310368,198.51,198.45,9.78560368]
[1739325009415,14.82310368,198.51,198.44,9.78560368]
[1739325009629,14.82310368,198.51,198.45,9.78560368]
[1739325010011,9.78560368,198.51,198.45,9.78560368]
[1739325010215,14.82310368,198.51,198.45,9.78560368]
[1739325011230,1.5926,198.52,198.45,9.78560368]
[1739325011231,11.37820368,198.52,198.46,9.78560368]
[1739325011413,1.5926,198.52,198.46,9.78560368]
[1739325011609,11.37820368,198.52,198.46,9.78560368]
[1739325012633,9.78560368,198.5,198.43,9.78560368]
[1739325012822,9.78560368,198.5,198.44,9.78560368]
[1739325013749,14.82340368,198.5,198.44,9.78560368]
[1739325014121,9.78560368,198.48,198.41,9.78560368]
[1739325014431,9.78560368,198.47,198.41,9.78560368]
[1739325015039,9.78560368,198.48,198.42,9.78560368]
[1739325015219,9.78560368,198.49,198.43,9.78560368]
[1739325015821,9.78560368,198.51,198.45,9.78560368]
[1739325016230,16.41560368,198.52,198.46,9.78560368]
[1739325016429,9.78560368,198.51,198.45,9.78560368]
[1739325016640,9.78560368,198.51,198.44,9.78560368]
[1739325016935,9.78560368,198.5,198.44,9.78560368]
[1739325017128,9.78560368,198.48,198.42,9.78560368]
[1739325017336,9.78560368,198.48,198.41,9.78560368]
[1739325017535,9.78560368,198.48,198.42,9.78560368]
[1739325018237,9.81560368,198.48,198.42,9.78560368]
[1739325019038,0.03,198.48,198.44,9.78560368]
[1739325019640,0.03,198.48,198.45,9.78560368]
[1739325020319,0.03,198.48,198.44,9.78560368]
[1739325020942,0.03,198.48,198.43,9.78560368]
[1739325022928,0.03,198.48,198.44,9.78560368]
[1739325023139,0.03,198.48,198.45,9.78560368]
[1739325023735,0.03,198.48,198.43,5.0395]
[1739325023736,0.03,198.48,198.47,9.78560368]
[1739325024036,0.03,198.48,198.45,9.78560368]
[1739325024343,0.03,198.48,198.44,9.78560368]
[1739325024638,0.03,198.48,198.45,9.78560368]
[1739325025727,0.03,198.48,198.45,14.82450368]
[1739325025925,0.03,198.48,198.46,9.78560368]
[1739325026127,0.03,198.48,198.45,9.78560368]
[1739325026526,0.03,198.48,198.45,14.82460368]
[1739325026729,0.03,198.48,198.45,9.78560368]
[1739325027120,0.03,198.48,198.45,14.82450368]
[1739325027328,0.03,198.48,198.42,9.78560368]
[1739325027734,9.81560368,198.48,198.42,9.78560368]
[1739325027948,9.78560368,198.47,198.41,5.04]
[1739325028252,9.78560368,198.44,198.37,14.88950368]
[1739325028453,9.78560368,198.44,198.38,9.78560368]
[1739325029342,14.82490368,198.44,198.38,9.78560368]
[1739325029552,14.82490368,198.44,198.37,14.88950368]
[1739325030452,9.78560368,198.4,198.37,0.063]
[1739325031426,14.82590368,198.4,198.37,0.063]
[1739325031629,9.78560368,198.4,198.37,0.063]
[1739325032556,9.78560368,198.43,198.37,0.063]
[1739325033054,9.78560368,198.43,198.37,9.84860368]
[1739325033455,9.78560368,198.44,198.37,9.84860368]
[1739325033754,1.6222,198.45,198.4,9.78560368]
[1739325034128,1.6222,198.45,198.39,9.78560368]
[1739325034447,1.6222,198.45,198.4,9.78560368]
[1739325035148,1.6222,198.45,198.39,9.78560368]
[1739325035335,1.6222,198.45,198.4,9.78560368]
[1739325035654,1.6222,198.45,198.42,9.78560368]
[1739325036357,0.03,198.48,198.44,9.78560368]
[1739325036651,0.03,198.48,198.45,9.78560368]
[1739325036954,0.03,198.48,198.4,39.51888472]
[1739325036955,0.03,198.48,198.44,9.78560368]
[1739325037957,0.03,198.48,198.45,9.78560368]
[1739325038335,0.03,198.48,198.46,9.78560368]
[1739325038849,0.03,198.48,198.45,9.78560368]
[1739325039049,0.03,198.48,198.47,9.78560368]
[1739325039443,0.03,198.48,198.46,9.78560368]
[1739325040857,0.03,198.48,198.47,9.78560368]
[1739325042257,0.03,198.48,198.46,9.78560368]
[1739325042558,0.03,198.48,198.46,14.82430368]
[1739325042859,0.03,198.48,198.47,9.78560368]
[1739325043849,0.03,198.48,198.47,23.19745221]
[1739325044051,0.03,198.48,198.47,28.23595221]
[1739325046049,0.03,198.48,198.47,9.78560368]
[1739325046252,0.03,198.48,198.46,9.78560368]
[1739325046763,0.03,198.48,198.45,9.78560368]
[1739325046947,0.03,198.48,198.44,9.78560368]
[1739325047264,0.03,198.48,198.42,5.0395]
[1739325047265,0.03,198.48,198.43,9.78560368]
[1739325048963,0.03,198.48,198.43,14.82510368]
[1739325049479,0.03,198.48,198.44,9.78560368]
[1739325050647,0.03,198.48,198.46,9.78560368]
[1739325050856,0.03,198.48,198.47,9.78560368]
[1739325052953,0.03,198.48,198.45,9.78560368]
[1739325053165,0.03,198.48,198.44,14.82490368]
[1739325054068,0.03,198.48,198.45,9.78560368]
[1739325055966,0.03,198.48,198.46,9.78560368]
[1739325056169,0.03,198.48,198.46,14.82430368]
[1739325057170,0.03,198.48,198.46,9.78560368]
[1739325057658,0.03,198.48,198.45,9.78560368]
[1739325058143,0.03,198.48,198.46,9.78560368]
[1739325059467,0.03,198.48,198.44,9.78560368]
[1739325060264,0.03,198.48,198.45,23.19745221]
[1739325060473,0.03,198.48,198.45,9.78560368]
[1739325061475,0.03,198.48,198.46,9.78560368]
[1739325062988,0.03,198.48,198.47,23.19745221]
[1739325064455,0.03,198.48,198.47,28.23595221]
[1739325066668,0.03,198.48,198.46,14.82430368]
[1739325066976,0.03,198.48,198.43,9.78560368]
[1739325067281,9.78560368,198.45,198.39,14.82610368]
[1739325067571,9.78560368,198.44,198.38,9.78560368]
[1739325067751,9.78560368,198.43,198.38,13.41184853]
[1739325067949,9.78560368,198.43,198.37,9.84860368]
[1739325068151,9.78560368,198.4,198.37,0.063]